bitfinex/quotes_SOLUSD_20250622
["timestamp","ask_amount","ask_price","bid_price","bid_amount"]
[1750631032938,41.39416985,130.59,130.58,9.2]
[1750631033238,18.64964886,130.58,130.56,26.0]
[1750631033547,40.71416985,130.57,130.56,26.0]
[1750631035614,18.64964886,130.57,130.56,26.0]
[1750631035813,41.84452099,130.6,130.56,26.0]
[1750631036545,22.06452099,130.59,130.56,26.0]
[1750631038040,22.06452099,130.59,130.55,26.0]
[1750631038342,22.06452099,130.59,130.57,26.0]
[1750631038549,22.06452099,130.58,130.57,26.0]
[1750631039149,40.71416985,130.59,130.57,26.0]
[1750631039651,40.71416985,130.58,130.57,26.0]
[1750631040024,19.78,130.6,130.56,22.06452099]
[1750631040225,22.06452099,130.6,130.56,22.06452099]
[1750631040544,22.06452099,130.58,130.56,26.0]
[1750631040845,22.74452099,130.57,130.56,26.0]
[1750631041030,40.71416985,130.57,130.52,9.2]
[1750631041240,22.06452099,130.54,130.52,9.2]
[1750631041442,40.71416985,130.53,130.47,28.62142099]
[1750631041636,22.06452099,130.51,130.46,31.28452099]
[1750631041946,22.06452099,130.52,130.5,26.0]
[1750631042331,22.74452099,130.52,130.5,26.0]
[1750631042531,18.64964886,130.51,130.5,26.0]
[1750631042755,40.71416985,130.51,130.5,26.0]
[1750631043140,40.71416985,130.51,130.49,26.0]
[1750631043339,18.64964886,130.51,130.5,26.0]
[1750631044148,22.06452099,130.51,130.5,26.0]
[1750631044462,18.64964886,130.49,130.46,9.22]
[1750631044755,18.64964886,130.47,130.46,9.22]
[1750631044961,40.71416985,130.47,130.43,48.06452099]
[1750631045138,40.71416985,130.47,130.43,26.0]
[1750631045331,18.64964886,130.47,130.43,48.06452099]
[1750631045753,18.64964886,130.46,130.43,48.06452099]
[1750631046058,18.64964886,130.46,130.42,22.06452099]
[1750631046259,18.64964886,130.46,130.41,1.6155]
[1750631046260,22.06452099,130.45,130.41,1.6155]
[1750631046431,22.06452099,130.45,130.42,26.0]
[1750631046628,40.71416985,130.45,130.41,1.6155]
[1750631046826,18.64964886,130.44,130.4,22.06452099]
[1750631047030,41.39416985,130.44,130.42,26.0]
[1750631047352,19.78,130.43,130.39,9.22]
[1750631047734,18.64964886,130.42,130.41,26.0]
[1750631048037,40.71416985,130.44,130.43,26.0]
[1750631048369,0.68,130.42,130.39,9.22]
[1750631048531,22.06452099,130.41,130.39,9.22]
[1750631048731,22.06452099,130.41,130.36,22.06452099]
[1750631048732,40.71416985,130.4,130.36,22.06452099]
[1750631048931,19.78,130.42,130.41,26.0]
[1750631049156,38.42964886,130.42,130.41,26.0]
[1750631049349,60.49416985,130.42,130.41,26.0]
[1750631049749,38.42964886,130.42,130.41,26.0]
[1750631049950,38.42964886,130.42,130.39,22.06452099]
[1750631050149,19.78,130.42,130.39,22.06452099]
[1750631050355,34.87801985,130.43,130.39,15.54837099]
[1750631050535,15.54837099,130.41,130.37,15.54837099]
[1750631050734,0.68,130.42,130.39,15.54837099]
[1750631050933,34.19801985,130.42,130.37,41.54837099]
[1750631051151,15.54837099,130.4,130.36,15.54837099]
[1750631051337,15.54837099,130.4,130.34,7.8518]
[1750631051338,18.64964886,130.38,130.34,15.54837099]
[1750631051540,19.78,130.4,130.3,2.1593]
[1750631051541,18.64964886,130.36,130.3,1.5893]
[1750631051758,18.64964886,130.36,130.3,17.13767099]
[1750631051951,34.19801985,130.35,130.34,26.0]
[1750631052142,18.64964886,130.35,130.34,26.0]
[1750631052341,19.78,130.37,130.34,26.0]
[1750631052653,7.0906,130.4,130.36,48.17639045]
[1750631052845,19.78,130.4,130.36,22.17639045]
[1750631053161,19.78,130.4,130.32,22.17639045]
[1750631053162,18.64964886,130.42,130.39,48.17639045]
[1750631053532,18.64964886,130.42,130.34,9.22]
[1750631053533,19.78,130.43,130.42,26.0]
[1750631053765,38.42964886,130.43,130.42,26.0]
[1750631054133,18.64964886,130.45,130.42,48.17639045]
[1750631054435,19.78,130.46,130.44,22.17639045]
[1750631054636,19.78,130.46,130.4,26.72]
[1750631054839,22.17639045,130.5,130.45,22.17639045]
[1750631055044,19.78,130.49,130.46,26.0]
[1750631055260,18.64964886,130.48,130.46,26.0]
[1750631055447,19.78,130.49,130.48,26.0]
[1750631055768,19.78,130.49,130.47,22.17639045]
[1750631056064,18.64964886,130.48,130.47,26.0]
[1750631056766,41.54603931,130.48,130.44,26.0]
[1750631056938,18.64964886,130.46,130.45,26.0]
[1750631057139,61.32603931,130.46,130.45,26.0]
[1750631057645,61.32603931,130.46,130.43,26.0]
[1750631057956,40.82603931,130.44,130.43,26.0]
[1750631058160,18.64964886,130.44,130.41,26.0]
[1750631058347,20.5,130.46,130.41,26.0]
[1750631058348,20.5,130.46,130.41,48.17639045]
[1750631058666,28.11049244,130.65,130.45,26.0]
[1750631058667,18.64964886,130.47,130.45,26.0]
[1750631058967,40.82603931,130.47,130.46,26.0]
[1750631059337,40.82603931,130.47,130.45,26.0]
[1750631059540,18.64964886,130.46,130.45,26.0]
[1750631059953,18.64964886,130.46,130.41,26.0]
[1750631060144,18.64964886,130.46,130.45,26.0]
[1750631060347,40.82603931,130.46,130.45,26.0]
[1750631060541,18.64964886,130.46,130.43,22.17639045]
[1750631060761,18.64964886,130.46,130.45,26.0]
[1750631061565,22.17639045,130.46,130.45,26.0]
[1750631061770,18.64964886,130.45,130.37,1.5013]
[1750631061951,22.17639045,130.39,130.36,9.12]
[1750631062154,22.17639045,130.38,130.36,9.12]
[1750631062677,22.17639045,130.37,130.36,9.12]
[1750631062840,18.64964886,130.4,130.36,9.12]
[1750631062841,22.17639045,130.38,130.36,9.12]
[1750631063046,22.17639045,130.37,130.36,9.12]
[1750631063275,22.17639045,130.38,130.36,9.12]
[1750631063645,22.17639045,130.37,130.36,9.12]
[1750631063847,19.36964886,130.4,130.36,9.12]
[1750631064065,22.17639045,130.38,130.36,9.12]
[1750631064264,22.17639045,130.38,130.37,26.0]
[1750631064871,40.82603931,130.38,130.37,26.0]
[1750631065956,18.64964886,130.38,130.37,26.0]
[1750631066466,18.64964886,130.38,130.36,9.12]
[1750631066467,19.78,130.41,130.38,26.0]
[1750631066669,40.82603931,130.41,130.38,26.0]
[1750631066842,22.17639045,130.4,130.38,26.0]
[1750631067460,22.17639045,130.39,130.38,26.0]
[1750631067666,22.17639045,130.4,130.38,26.0]
[1750631068060,18.64964886,130.41,130.38,26.0]
[1750631068246,22.17639045,130.4,130.38,26.0]
[1750631068447,41.95639045,130.42,130.39,26.0]
[1750631068656,22.17639045,130.41,130.39,26.0]
[1750631068858,18.64964886,130.4,130.39,26.0]
[1750631069584,18.64964886,130.41,130.39,26.0]
[1750631070075,40.82603931,130.41,130.39,26.0]
[1750631071273,18.64964886,130.41,130.39,26.0]
[1750631071470,19.78,130.42,130.39,26.0]
[1750631071783,41.95639045,130.42,130.39,26.0]
[1750631072158,19.78,130.42,130.39,26.0]
[1750631072767,40.82603931,130.41,130.39,26.0]
[1750631072976,40.82603931,130.4,130.39,26.0]
[1750631073279,41.54603931,130.4,130.39,26.0]
[1750631073475,61.30603931,130.4,130.39,26.0]
[1750631073675,22.17639045,130.42,130.39,26.0]
[1750631073866,18.64964886,130.41,130.39,48.17639045]
[1750631074067,0.72,130.44,130.39,48.17639045]
[1750631074362,39.12964886,130.44,130.43,26.0]
[1750631074565,38.40964886,130.44,130.43,26.0]
[1750631074763,0.72,130.47,130.43,48.17639045]
[1750631074972,7.2175,130.5,130.46,26.0]
[1750631074973,22.17639045,130.48,130.46,26.0]
[1750631075185,38.40964886,130.47,130.46,26.0]
[1750631075683,0.72,130.5,130.46,22.17639045]
[1750631075864,20.48,130.53,130.51,26.0]
[1750631076069,42.65639045,130.53,130.51,26.0]
[1750631076280,18.64964886,130.51,130.5,26.0]
[1750631076864,40.82603931,130.51,130.5,26.0]
[1750631077501,41.54603931,130.51,130.48,26.0]
[1750631077665,18.64964886,130.49,130.48,26.0]
[1750631077866,38.40964886,130.49,130.48,26.0]
[1750631078288,19.76,130.51,130.48,48.17639045]
[1750631078602,18.64964886,130.53,130.5,22.17639045]
[1750631079381,7.1488,130.57,130.5,22.17639045]
[1750631079567,18.64964886,130.54,130.53,26.0]
[1750631079975,18.64964886,130.53,130.51,26.0]
[1750631080198,40.82603931,130.52,130.51,26.0]
[1750631080608,18.64964886,130.51,130.5,26.0]
[1750631081699,41.54603931,130.51,130.44,1.502]
[1750631081888,22.17639045,130.47,130.44,1.502]
[1750631082195,18.64964886,130.47,130.46,26.0]
[1750631082708,18.64964886,130.46,130.42,28.37759045]
[1750631082992,18.64964886,130.46,130.45,26.0]
[1750631082993,40.82603931,130.46,130.45,26.0]
[1750631083493,40.82603931,130.46,130.4,1.6008]
[1750631083792,40.82603931,130.46,130.4,23.77719045]
[1750631083793,18.64964886,130.44,130.4,23.77719045]
[1750631083962,22.17639045,130.43,130.4,1.6008]
[1750631084168,18.64964886,130.43,130.42,26.0]
[1750631085293,19.74,130.44,130.42,26.0]
[1750631085889,0.72,130.46,130.44,26.0]
[1750631085890,19.74,130.46,130.44,26.0]
[1750631086092,18.64964886,130.5,130.48,26.0]
[1750631086279,22.17639045,130.52,130.49,26.0]
[1750631086479,41.91639045,130.53,130.48,22.17639045]
[1750631086772,41.91639045,130.53,130.41,29.84411769]
[1750631086773,19.74,130.53,130.52,26.0]
[1750631087074,60.56603931,130.53,130.52,26.0]
[1750631087471,18.64964886,130.52,130.5,22.17639045]
[1750631087687,38.38964886,130.55,130.52,26.0]
[1750631088076,60.56603931,130.55,130.52,26.0]
[1750631089098,38.38964886,130.55,130.52,26.0]
[1750631089511,18.64964886,130.53,130.49,26.0]
[1750631089674,60.56603931,130.53,130.49,48.17639045]
[1750631089875,38.38964886,130.53,130.49,48.17639045]
[1750631090696,38.38964886,130.53,130.5,22.17639045]
[1750631091082,38.38964886,130.53,130.49,26.0]
[1750631091397,60.56603931,130.53,130.49,48.17639045]
[1750631091582,38.38964886,130.53,130.5,22.17639045]
[1750631091776,4.64522606,130.52,130.49,26.0]
[1750631092184,4.64522606,130.52,130.49,48.17639045]
[1750631093109,60.56603931,130.53,130.49,48.17639045]
[1750631093285,38.38964886,130.53,130.5,22.17639045]
[1750631094616,38.38964886,130.53,130.51,22.17639045]
[1750631094796,18.64964886,130.54,130.49,26.0]
[1750631094992,40.82603931,130.54,130.53,26.0]
[1750631095188,45.46831021,130.54,130.53,26.0]
[1750631095384,23.29191976,130.54,130.53,26.0]
[1750631096317,23.29191976,130.54,130.5,22.17639045]
[1750631096610,18.64964886,130.54,130.53,26.0]
[1750631096905,23.29578201,130.54,130.53,26.0]
[1750631098120,23.29328378,130.54,130.53,26.0]
[1750631098501,18.64964886,130.54,130.53,26.0]
[1750631099214,18.64964886,130.56,130.55,26.0]
[1750631099722,18.64964886,130.56,130.54,22.17639045]
[1750631100215,19.72,130.57,130.53,26.0]
[1750631100536,0.72,130.63,130.57,26.0]
[1750631100691,4.63882797,130.66,130.65,26.0]
[1750631100897,19.72,130.67,130.65,26.0]
[1750631101095,19.72,130.67,130.66,26.0]
[1750631101316,4.63797692,130.68,130.66,48.17639045]
[1750631101618,4.63797692,130.68,130.61,15.381]
[1750631101619,19.72,130.7,130.69,26.0]
[1750631101801,22.89639045,130.73,130.69,48.17639045]
[1750631102124,19.72,130.74,130.7,48.17639045]
[1750631102294,18.64964886,130.73,130.72,26.0]
[1750631102714,40.82603931,130.73,130.72,26.0]
[1750631103019,18.64964886,130.73,130.71,48.17639045]
[1750631103222,19.72,130.75,130.71,48.17639045]
[1750631103524,41.89639045,130.75,130.71,26.0]
[1750631103703,18.64964886,130.74,130.73,26.0]
[1750631104298,19.72,130.75,130.74,26.0]
[1750631104498,38.36964886,130.75,130.74,26.0]
[1750631104921,18.64964886,130.75,130.74,26.0]
[1750631105316,38.34964886,130.75,130.74,26.0]
[1750631105518,18.64964886,130.74,130.71,48.17639045]
[1750631105831,19.7,130.73,130.71,26.0]
[1750631107824,18.64964886,130.72,130.71,26.0]
[1750631108000,18.64964886,130.76,130.74,26.0]
[1750631108202,38.34964886,130.76,130.74,26.0]
[1750631108598,0.72,130.85,130.74,6.3582]
[1750631108798,22.17639045,130.8,130.78,26.0]
[1750631109003,40.82603931,130.79,130.78,26.0]
[1750631109302,40.82603931,130.79,130.72,0.69]
[1750631109303,18.64964886,130.78,130.74,48.17639045]
[1750631109502,40.82603931,130.78,130.74,48.17639045]
[1750631109706,18.64964886,130.78,130.74,48.17639045]
[1750631109911,18.64964886,130.8,130.77,26.0]
[1750631110123,0.72,130.83,130.77,48.17639045]
[1750631110338,18.64964886,130.81,130.77,22.17639045]
[1750631110502,0.72,130.86,130.8,22.17639045]
[1750631110705,22.17639045,130.85,130.81,26.0]
[1750631110942,41.85639045,130.85,130.81,26.0]
[1750631111309,18.64964886,130.84,130.83,26.0]
[1750631113224,18.64964886,130.84,130.81,48.17639045]
[1750631113614,40.82603931,130.84,130.81,26.0]
[1750631113825,0.72,130.86,130.81,26.0]
[1750631114025,0.7,130.97,130.85,22.17639045]
[1750631114227,22.17639045,130.96,130.91,22.17639045]
[1750631114444,19.68,130.95,130.92,22.17639045]
[1750631114649,19.68,130.95,130.91,22.17639045]
[1750631114848,22.87639045,130.93,130.89,26.0]
[1750631115046,19.68,130.92,130.89,48.17639045]
[1750631115249,18.64964886,130.91,130.89,48.17639045]
[1750631115432,18.64964886,130.89,130.86,26.0]
[1750631115644,40.82603931,130.88,130.87,26.0]
[1750631116035,18.64964886,130.88,130.87,26.0]
[1750631116335,41.52603931,130.88,130.82,22.17639045]
[1750631116547,18.64964886,130.85,130.84,26.0]
[1750631116836,60.48603931,130.85,130.8,22.17639045]
[1750631117243,60.48603931,130.85,130.83,26.0]
[1750631117442,40.82603931,130.84,130.83,26.0]
[1750631117864,18.64964886,130.84,130.83,26.0]
[1750631118190,40.82603931,130.84,130.83,26.0]
[1750631118337,40.82603931,130.84,130.77,10.5486]
[1750631118338,18.64964886,130.83,130.82,26.0]
[1750631118532,18.64964886,130.84,130.82,26.0]
[1750631118736,40.82603931,130.83,130.82,26.0]
[1750631119451,40.82603931,130.83,130.8,26.0]
[1750631119639,40.82603931,130.83,130.81,26.0]
[1750631120442,22.17639045,130.82,130.81,26.0]
[1750631121043,60.48603931,130.83,130.81,26.0]
[1750631121559,60.48603931,130.83,130.8,26.0]
[1750631122457,19.66,130.83,130.8,48.17639045]
[1750631122661,22.17639045,130.84,130.8,48.17639045]
[1750631122962,22.17639045,130.83,130.8,26.0]
[1750631123275,22.17639045,130.83,130.77,10.5486]
[1750631123276,40.82603931,130.82,130.81,26.0]
[1750631124081,18.64964886,130.82,130.81,26.0]
[1750631124370,18.64964886,130.84,130.81,26.0]
[1750631124578,40.82603931,130.84,130.81,26.0]
[1750631125052,18.64964886,130.84,130.81,26.0]
[1750631125256,18.64964886,130.84,130.83,26.0]
[1750631126046,18.64964886,130.84,130.81,22.17639045]
[1750631126047,18.64964886,130.84,130.8,48.17639045]
[1750631126254,0.7,130.89,130.82,26.0]
[1750631126455,40.82603931,130.87,130.83,26.0]
[1750631126652,18.64964886,130.88,130.87,26.0]
[1750631127152,18.64964886,130.88,130.81,26.0]
[1750631127153,41.52603931,130.88,130.81,26.0]
[1750631127354,22.17639045,130.85,130.83,26.0]
[1750631127576,19.64,130.85,130.81,22.17639045]
[1750631128391,41.81639045,130.85,130.81,22.17639045]
[1750631128561,19.64,130.85,130.81,22.17639045]
[1750631128762,41.81639045,130.85,130.81,22.17639045]
[1750631130706,41.81639045,130.85,130.8,26.0]
[1750631130707,38.28964886,130.85,130.84,26.0]
[1750631130882,18.64964886,130.85,130.84,26.0]
[1750631131394,19.64,130.87,130.84,22.17639045]
[1750631131575,19.64,130.87,130.86,26.0]
[1750631131775,18.64964886,130.88,130.86,26.0]
[1750631132406,19.64,130.9,130.87,26.0]
[1750631133295,41.81639045,130.9,130.87,26.0]
[1750631133491,18.64964886,130.92,130.87,26.0]
[1750631133803,0.7,130.93,130.87,26.0]
[1750631133804,41.81639045,130.91,130.87,48.17639045]
[1750631134485,41.81639045,130.91,130.89,26.0]
[1750631134815,18.64964886,130.93,130.89,26.0]
[1750631135001,22.17639045,130.93,130.89,26.0]
[1750631135307,18.64964886,130.93,130.89,22.17639045]
[1750631135605,18.64964886,130.93,130.92,26.0]
[1750631135809,19.62,130.94,130.92,26.0]
[1750631135977,18.64964886,130.95,130.92,26.0]
[1750631136300,18.64964886,130.95,130.94,26.0]
[1750631137098,18.64964886,130.96,130.95,26.0]
[1750631137499,23.3341644,130.96,130.95,26.0]
[1750631137711,4.68451554,130.96,130.94,22.17639045]
[1750631137935,18.64964886,130.98,130.94,22.17639045]
[1750631138099,18.64964886,130.98,130.93,26.0]
[1750631138100,4.68451554,130.97,130.95,22.17639045]
[1750631138929,40.82603931,130.98,130.94,48.17639045]
[1750631139425,4.67770218,130.97,130.94,48.17639045]
[1750631139602,18.64964886,130.98,130.94,26.0]
[1750631139802,22.17639045,130.95,130.86,1.603]
[1750631140003,22.17639045,130.92,130.86,7.6091]
[1750631140214,22.17639045,130.91,130.86,29.78549045]
[1750631141246,22.17639045,130.91,130.89,26.0]
[1750631141921,22.17639045,130.91,130.86,29.78549045]
[1750631142102,22.17639045,130.91,130.89,26.0]
[1750631142503,40.82603931,130.9,130.88,26.0]
[1750631142707,4.71951158,130.89,130.88,26.0]
[1750631143118,4.71953465,130.89,130.88,26.0]
[1750631144414,45.54557396,130.89,130.88,26.0]
[1750631144623,18.64964886,130.88,130.85,8.92]
[1750631144822,26.8959251,130.87,130.86,26.0]
[1750631145925,22.17639045,130.87,130.86,26.0]
[1750631146237,26.89913908,130.87,130.86,26.0]
[1750631146612,4.72274863,130.87,130.86,26.0]
[1750631147028,60.42603931,130.88,130.87,26.0]
[1750631148042,61.16603931,130.88,130.87,26.0]
[1750631148420,60.42603931,130.88,130.87,26.0]
[1750631148631,65.15866002,130.88,130.87,20.25925543]
[1750631149242,60.42603931,130.88,130.87,20.25925543]
[1750631149540,65.15887434,130.88,130.87,20.25925543]
[1750631149748,65.89887434,130.88,130.87,20.25925543]
[1750631150330,59.16854071,130.88,130.87,20.25925543]
[1750631152127,59.08834517,130.88,130.87,20.25925543]
[1750631153243,58.34834517,130.88,130.87,20.25925543]
[1750631153418,58.34834517,130.88,130.87,36.06531225]
[1750631153419,4.65263949,130.88,130.87,36.06531225]
[1750631153624,4.65263949,130.93,130.87,36.06531225]
[1750631153842,4.64818753,130.92,130.91,26.0]
[1750631155044,4.64818753,130.92,130.9,41.44605682]
[1750631155245,4.64818753,130.91,130.9,41.44605682]
[1750631155943,38.98964886,130.94,130.9,41.44605682]
[1750631155944,23.29783639,130.93,130.92,26.0]
[1750631157145,23.29783639,130.93,130.9,15.44605682]
[1750631157328,4.64818753,130.92,130.9,15.44605682]
[1750631157523,4.64818753,130.92,130.88,26.0]
[1750631157524,4.64818753,130.91,130.88,41.44605682]
[1750631157725,18.64964886,130.95,130.92,26.0]
[1750631157924,4.64325489,130.94,130.93,15.44605682]
[1750631158750,18.64964886,130.95,130.93,15.44605682]
[1750631159120,18.64964886,130.97,130.93,15.44605682]
[1750631159341,18.64964886,130.95,130.93,15.44605682]
[1750631159545,18.64964886,130.95,130.94,15.44605682]
[1750631159749,19.58,130.99,130.94,41.80605682]
[1750631159947,4.63742805,130.98,130.95,15.44605682]
[1750631160250,24.02707691,130.98,130.94,41.44605682]
[1750631160448,19.58,130.99,130.97,26.0]
[1750631160753,18.64964886,130.98,130.97,41.44605682]
[1750631160945,0.74,131.01,130.97,41.44605682]
[1750631161148,19.58,131.01,130.98,41.44605682]
[1750631161450,18.64964886,131.0,130.98,41.44605682]
[1750631161751,18.64964886,131.02,130.98,41.44605682]
[1750631161937,35.76605682,131.03,130.98,41.44605682]
[1750631162139,18.64964886,131.02,130.98,41.44605682]
[1750631163126,18.64964886,131.02,130.99,15.44605682]
[1750631163335,0.74,131.01,130.98,26.0]
[1750631163657,34.83570568,130.99,130.93,15.44605682]
[1750631163846,15.44605682,130.98,130.96,26.0]
[1750631164030,18.64964886,130.99,130.96,41.44605682]
[1750631164230,34.83570568,131.0,130.95,15.44605682]
[1750631164446,19.38964886,131.0,130.95,15.44605682]
[1750631164659,5.66716879,131.03,131.0,26.0]
[1750631164954,5.66686457,131.06,131.02,41.44605682]
[1750631165127,5.66613211,131.1,131.05,41.44605682]
[1750631165332,19.58,131.11,131.07,15.44605682]
[1750631165534,0.74,131.1,131.06,15.44605682]
[1750631165840,15.44605682,131.09,131.05,26.0]
[1750631166035,16.18605682,131.09,131.05,41.44605682]
[1750631166341,15.44605682,131.09,131.05,41.44605682]
[1750631166549,4.58283539,131.09,131.05,41.44605682]
[1750631166850,18.64964886,131.07,131.05,26.0]
[1750631167065,15.44605682,131.06,130.97,1.9613]
[1750631167369,15.44605682,131.05,131.0,41.44605682]
[1750631167543,18.64964886,131.04,131.03,26.0]
[1750631167749,39.42309441,131.04,131.03,26.0]
[1750631168151,23.97703759,131.04,131.03,26.0]
[1750631168357,39.42309441,131.04,130.97,1.6013]
[1750631168555,15.44605682,131.0,130.97,1.6013]
[1750631168760,18.64964886,131.0,130.97,1.6013]
[1750631168962,18.64964886,131.0,130.99,26.0]
[1750631169155,34.09570568,131.0,130.97,1.6013]
[1750631169451,15.44605682,130.98,130.94,24.28605682]
[1750631169770,34.09570568,130.99,130.97,26.0]
[1750631169974,20.3,131.02,130.98,26.0]
[1750631169975,18.64964886,131.01,130.98,26.0]
[1750631170176,4.58926605,131.0,130.98,26.0]
[1750631170471,15.44605682,130.99,130.98,26.0]
[1750631170970,4.58926605,131.0,130.98,26.0]
[1750631171148,15.44605682,130.99,130.98,26.0]
[1750631171978,15.44605682,130.99,130.94,15.44605682]
[1750631172284,15.44605682,131.03,130.98,15.44605682]
[1750631172459,18.64964886,131.02,131.01,26.0]
[1750631172647,4.5900088,131.02,131.01,26.0]
[1750631172847,38.68505652,131.02,131.01,26.0]
[1750631173146,18.64964886,131.02,131.01,26.0]
[1750631174980,18.64964886,131.02,130.98,15.44605682]
[1750631175470,18.64964886,131.02,131.01,26.0]
[1750631175672,16.18605682,131.05,131.03,26.0]
[1750631175968,18.64964886,131.04,131.03,26.0]
[1750631176471,38.68309475,131.04,131.03,26.0]
[1750631176674,23.23703793,131.04,131.03,26.0]
[1750631177066,18.64964886,131.04,131.03,26.0]
[1750631178173,4.58295043,131.04,131.03,26.0]
[1750631178353,18.64964886,131.04,131.03,26.0]
[1750631178561,23.23259929,131.04,131.03,26.0]
[1750631178878,23.23259929,131.04,130.93,8.0855]
[1750631178879,38.67865611,131.04,130.93,8.0855]
[1750631179057,15.44605682,131.02,130.97,41.44605682]
[1750631179258,38.67865611,131.03,131.02,26.0]
[1750631179465,23.23259929,131.03,131.02,26.0]
[1750631179679,38.67865611,131.03,131.02,26.0]
[1750631179850,18.64964886,131.02,130.97,15.44605682]
[1750631180057,18.64964886,131.0,130.97,15.44605682]
[1750631180255,18.64964886,131.0,130.97,41.44605682]
[1750631180691,16.12605682,131.02,131.0,26.0]
[1750631180870,20.70701255,131.02,131.0,26.0]
[1750631181177,5.26095573,131.02,131.0,26.0]
[1750631181382,20.70701255,131.02,131.0,26.0]
[1750631181765,20.70701255,131.02,130.97,26.0]
[1750631182080,20.70701255,131.02,130.97,41.44605682]
[1750631182496,15.44605682,131.01,130.97,41.44605682]
[1750631182662,15.44605682,131.0,130.97,26.0]
[1750631182867,18.64964886,130.99,130.95,15.44605682]
[1750631183169,34.09570568,130.99,130.98,26.0]
[1750631183566,38.67784159,130.99,130.93,8.0855]
[1750631183898,18.64964886,130.97,130.93,16.99375682]
[1750631184059,18.64964886,130.97,130.94,15.44605682]
[1750631184387,18.64964886,130.97,130.93,16.99375682]
[1750631184593,15.44605682,130.94,130.9,8.74]
[1750631184792,34.09570568,130.94,130.9,8.74]
[1750631184968,34.09570568,130.94,130.93,26.0]
[1750631185499,38.68457549,130.94,130.93,26.0]
[1750631186392,34.09570568,130.94,130.93,26.0]
[1750631186582,38.68661879,130.94,130.93,26.0]
[1750631187190,23.24056197,130.94,130.93,26.0]
[1750631187395,18.64964886,130.96,130.95,26.0]
[1750631187692,38.68285616,130.96,130.94,26.0]
[1750631187874,20.0332073,130.95,130.94,26.0]
[1750631188062,39.36285616,130.95,130.89,16.98345682]
[1750631188264,15.44605682,130.93,130.92,26.0]
[1750631188874,4.58272703,130.93,130.92,26.0]
[1750631189186,15.44605682,130.93,130.92,26.0]
[1750631189797,34.09570568,130.94,130.92,26.0]
[1750631189972,20.2,130.97,130.92,26.0]
[1750631190294,15.44605682,130.95,130.92,26.0]
[1750631190594,18.64964886,130.94,130.93,26.0]
[1750631190897,18.64964886,130.96,130.93,26.0]
[1750631191082,4.60457129,130.95,130.93,26.0]
[1750631191877,34.09570568,130.96,130.93,26.0]
[1750631194004,34.09570568,130.97,130.93,26.0]
[1750631194308,4.60727586,130.96,130.93,26.0]
[1750631195683,4.61660207,130.96,130.93,26.0]
[1750631196104,18.64964886,130.95,130.93,26.0]
[1750631196483,18.64964886,130.96,130.93,41.44605682]
[1750631196715,53.61570568,131.01,130.98,26.0]
[1750631196894,18.64964886,130.99,130.98,26.0]
[1750631197105,23.26494114,130.99,130.98,26.0]
[1750631197598,38.71099796,130.99,130.98,26.0]
[1750631197804,39.39099796,130.99,130.97,26.0]
[1750631198033,4.61529228,130.98,130.97,26.0]
[1750631200127,18.64964886,130.97,130.92,15.44605682]
[1750631200334,18.64964886,130.95,130.92,15.44605682]
[1750631200531,18.64964886,130.95,130.91,6.3152]
[1750631200532,34.09570568,130.95,130.94,26.0]
[1750631200848,38.71877869,130.95,130.94,26.0]
[1750631201039,4.62307301,130.95,130.94,26.0]
[1750631201333,18.64964886,130.97,130.94,41.44605682]
[1750631201507,4.6231874,130.96,130.94,41.44605682]
[1750631201907,4.6231874,130.96,130.94,26.0]
[1750631202119,4.6231874,130.96,130.94,41.44605682]
[1750631204338,4.62314377,130.96,130.94,41.44605682]
[1750631204837,18.64964886,130.97,130.94,41.44605682]
[1750631205036,15.44605682,130.95,130.91,21.76125682]
[1750631205339,4.62239272,130.95,130.91,6.3152]
[1750631205526,4.62239272,130.94,130.88,44.7338]
[1750631205858,18.64964886,130.94,130.91,26.0]